bitfinex/quotes_ETHUSD_20241003
["timestamp","ask_amount","ask_price","bid_price","bid_amount"]
[1727973979994,8.59614,2326.7,2326.3,1.713509]
[1727973980199,4.29807,2326.7,2326.3,0.7761]
[1727973980648,4.29795,2326.7,2326.3,5.07475]
[1727973980796,4.29777,2326.8,2326.4,4.29844]
[1727973981203,4.29777,2326.8,2326.3,0.7761]
[1727973981513,4.29812,2326.6,2326.3,0.7761]
[1727973981711,4.29875,2326.3,2326.0,0.7997]
[1727973982033,4.29832,2326.5,2326.1,4.29897]
[1727973982350,4.29808,2326.7,2326.2,4.29871]
[1727973982351,4.29801,2326.7,2326.2,4.29871]
[1727973982500,3.0,2327.0,2326.2,4.29871]
[1727973982501,4.29777,2326.8,2326.3,4.29852]
[1727973982707,4.29777,2326.8,2326.4,1.676723]
[1727973982926,4.29777,2326.8,2326.4,5.975203]
[1727973983237,4.29721,2327.1,2326.7,4.29784]
[1727973983649,4.29703,2327.2,2326.8,5.07073]
[1727973983810,4.29728,2327.1,2326.8,1.709857]
[1727973984016,4.29703,2327.2,2326.8,0.773]
[1727973984236,4.29738,2327.0,2326.8,0.773]
[1727973984434,4.29757,2326.9,2326.5,5.07121]
[1727973984674,4.29757,2326.9,2326.6,0.5930933]
[1727973984836,4.29711,2327.2,2326.7,4.29779]
[1727973985065,4.29644,2327.6,2327.0,4.29733]
[1727973985241,4.29671,2327.4,2327.0,4.29733]
[1727973985413,4.29653,2327.5,2327.0,9.531407]
[1727973985608,8.59315,2327.5,2327.0,5.234077]
[1727973986058,4.29614,2327.7,2327.0,0.936797]
[1727973986247,4.29673,2327.4,2327.0,0.936797]
[1727973986954,4.29673,2327.4,2327.0,5.234137]
[1727973987137,4.29673,2327.4,2326.8,0.773]
[1727973987138,4.29617,2327.7,2327.2,5.0942]
[1727973987342,0.8103,2327.8,2327.2,5.0942]
[1727973987343,4.296,2327.8,2327.2,5.0942]
[1727973987545,4.29548,2328.1,2327.2,0.7973]
[1727973987770,12.29,2328.5,2327.6,0.7588]
[1727973987771,0.7711,2328.5,2327.6,0.7588]
[1727973988097,4.29531,2328.2,2327.7,0.505513]
[1727973988213,8.59058,2328.2,2327.7,0.505513]
[1727973988414,4.29464,2328.5,2327.7,0.505513]
[1727973988719,4.29497,2328.4,2327.7,4.801483]
[1727973988916,4.29497,2328.4,2327.8,0.7588]
[1727973989158,4.29454,2328.6,2327.9,0.5560283]
[1727973989319,4.29454,2328.6,2328.0,0.7539]
[1727973989520,4.29491,2328.4,2328.0,0.7539]
[1727973989746,4.29501,2328.3,2328.0,0.7539]
[1727973989954,4.29564,2328.0,2327.7,0.7539]
[1727973990274,4.724771,2328.2,2327.3,7.46]
[1727973990275,4.2949,2328.4,2327.3,4.29681]
[1727973990411,4.2949,2328.4,2327.2,0.7937]
[1727973990412,4.29579,2327.9,2327.2,5.0907]
[1727973990616,4.29636,2327.6,2327.3,0.938788]
[1727973990816,0.7762,2328.0,2327.2,0.7937]
[1727973990817,4.29655,2327.5,2327.2,0.7937]
[1727973991042,4.29609,2327.7,2327.2,0.7937]
[1727973991278,4.29635,2327.6,2327.2,0.7937]
[1727973991502,8.59274,2327.6,2327.2,0.7937]
[1727973991652,4.29696,2327.3,2326.8,0.7937]
[1727973991859,5.07277,2327.5,2326.8,0.7937]
[1727973992062,5.07277,2327.5,2326.8,5.09142]
[1727973992063,0.7762,2327.5,2326.8,5.09142]
[1727973992246,4.29611,2327.7,2326.9,4.29755]
[1727973992453,4.29582,2327.9,2327.2,0.7937]
[1727973992677,4.2959,2327.8,2327.2,0.7937]
[1727973992884,8.59166,2327.9,2327.2,0.7937]
[1727973993083,7.29544,2328.1,2327.2,5.09058]
[1727973993598,0.7762,2328.2,2327.3,0.509058]
[1727973993772,0.7762,2328.2,2327.2,0.7937]
[1727973993773,4.29563,2328.0,2327.2,5.09058]
[1727973993974,4.29563,2328.0,2327.3,4.29669]
[1727973994283,4.29563,2328.0,2327.5,0.7978]
[1727973994596,5.07145,2328.2,2327.5,0.7978]
[1727973994597,4.29538,2328.1,2327.5,0.7978]
[1727973994891,4.29538,2328.1,2327.6,0.509431]
[1727973995090,4.29525,2328.2,2327.6,0.509431]
[1727973995444,4.29525,2328.2,2327.7,0.08437686]
[1727973995752,5.08195,2328.6,2327.7,0.8147]
[1727973995753,4.29456,2328.6,2327.7,0.8147]
[1727973996064,4.29462,2328.5,2327.8,9.40628]
[1727973996391,4.29462,2328.5,2327.9,0.940628]
[1727973996895,4.2938,2329.0,2328.2,4.29514]
[1727973997044,4.2938,2329.0,2328.3,5.1115695]
[1727973997251,4.29341,2329.2,2328.3,5.87322713]
[1727973997449,4.29341,2329.2,2328.6,0.7595]
[1727973997750,8.5862,2329.4,2328.7,4.34206779]
[1727973997965,4.2931,2329.4,2328.8,4.29404]
[1727973998185,4.29278,2329.5,2328.9,5.11684]
[1727973998357,4.29313,2329.3,2328.9,0.823]
[1727973999591,3.0,2329.6,2328.9,0.823]
[1727973999796,4.29305,2329.4,2328.9,0.823]
[1727974000008,4.29322,2329.3,2328.9,0.823]
[1727974000514,4.29333,2329.2,2328.9,0.823]
[1727974000812,4.29333,2329.2,2328.6,0.50541]
[1727974000813,4.29396,2328.9,2328.6,0.781]
[1727974000984,0.7595,2329.3,2328.4,0.781]
[1727974001191,0.7595,2329.3,2328.1,8.2435]
[1727974001192,4.29488,2328.4,2328.1,8.2435]
[1727974003086,4.29468,2328.5,2327.9,5.233224]
[1727974003278,4.29462,2328.5,2327.9,5.233224]
[1727974003807,4.2948,2328.4,2327.9,0.937514]
[1727974004008,4.29527,2328.2,2327.8,0.7835]
[1727974004576,4.295,2328.3,2327.8,0.7835]
[1727974004802,4.29462,2328.5,2327.9,4.29569]
[1727974004967,4.29481,2328.4,2327.8,5.07938]
[1727974005172,4.29462,2328.5,2327.9,4.38156364]
[1727974005399,4.29462,2328.5,2328.0,0.94609436]
[1727974005612,4.29482,2328.4,2328.1,0.08584649]
[1727974005817,4.29462,2328.5,2328.0,0.94609436]
[1727974006121,4.29462,2328.5,2328.1,0.0857024]
[1727974006270,8.58911,2328.6,2328.2,0.8043]
[1727974006470,4.29452,2328.6,2328.2,0.8043]
[1727974006669,4.2948,2328.4,2328.0,0.7846]
[1727974006972,4.29534,2328.1,2327.5,3.7846]
[1727974007178,4.29554,2328.0,2327.6,0.808113]
[1727974007376,4.29462,2328.5,2327.5,0.7846]
[1727974007377,4.29587,2327.9,2327.5,0.7846]
[1727974007576,3.7818,2328.2,2327.2,0.8121]
[1727974007816,4.29682,2327.3,2326.9,7.46]
[1727974007974,0.7818,2327.7,2326.8,0.7876]
[1727974008179,11.59345,2327.4,2326.9,0.07328634]
[1727974008413,7.29669,2327.4,2326.8,5.08525]
[1727974008714,7.29674,2327.4,2326.8,0.7876]
[1727974008921,4.29618,2327.7,2327.1,4.29716]
[1727974009220,4.29601,2327.8,2327.2,5.15017524]
[1727974009221,4.29592,2327.8,2327.2,5.15017524]
[1727974009521,4.29583,2327.9,2327.4,4.29662]
[1727974009789,4.29583,2327.9,2327.5,0.06573808]
[1727974010434,4.29571,2327.9,2327.3,0.51501752]
[1727974010810,4.29571,2327.9,2327.3,4.81181752]
[1727974011148,7.2951,2328.3,2327.6,5.10505]
[1727974011347,3.0,2328.3,2328.0,0.8089]
[1727974011546,4.29489,2328.4,2328.0,0.8089]
[1727974012037,8.58982,2328.4,2328.0,1.319372]
[1727974012233,4.29501,2328.3,2328.0,1.319372]
[1727974012435,4.29489,2328.4,2328.0,0.8089]
[1727974012648,4.29493,2328.4,2328.0,0.8089]
[1727974012803,4.29463,2328.5,2328.0,0.8089]
[1727974013000,4.29519,2328.2,2328.0,0.8089]
[1727974013303,4.29498,2328.3,2328.0,0.8089]
[1727974013739,4.29474,2328.5,2328.0,0.8089]
[1727974013915,7.29435,2328.7,2328.0,0.8089]
[1727974014320,4.29361,2329.1,2328.4,0.7706]
[1727974014416,4.29361,2329.1,2328.5,0.56417613]
[1727974014766,4.29397,2328.9,2328.5,0.56417613]
[1727974014913,4.29397,2328.9,2328.5,0.05762713]
[1727974015108,4.29368,2329.1,2328.6,0.06816775]
[1727974015550,7.29371,2329.0,2328.6,0.06816775]
[1727974015738,4.29351,2329.1,2328.6,0.06816775]
[1727974015939,4.29351,2329.1,2328.6,1.01097153]
[1727974016152,4.29387,2328.9,2328.6,0.94280378]
[1727974016321,4.29408,2328.8,2328.4,0.7706]
[1727974016519,4.29372,2329.0,2328.4,0.7706]
[1727974016763,4.29408,2328.8,2328.4,0.7706]
[1727974017540,4.29388,2328.9,2328.4,0.7706]
[1727974017739,4.29406,2328.8,2328.4,0.7706]
[1727974018056,4.29406,2328.8,2326.7,7.42246844]
[1727974018057,4.29481,2328.4,2328.0,0.7582]
[1727974018258,4.29498,2328.3,2328.0,0.7582]
[1727974018563,4.29453,2328.6,2328.0,5.05372]
[1727974018762,7.29416,2328.8,2328.1,4.2953]
[1727974018963,3.0,2328.6,2328.1,4.31811741]
[1727974019664,4.2945,2328.6,2328.2,0.02281642]
[1727974019824,4.2945,2328.6,2328.0,5.05372]
[1727974020027,4.2945,2328.6,2328.1,0.505372]
[1727974020254,4.29468,2328.5,2328.1,0.505372]
[1727974020564,3.0,2328.8,2328.0,0.7582]
[1727974020740,4.29468,2328.5,2328.0,0.7582]
[1727974021622,4.29534,2328.1,2327.7,0.7789]
[1727974021827,0.8159,2328.7,2327.7,0.7789]
[1727974022023,4.29469,2328.5,2328.0,5.07435]
[1727974022312,0.8159,2329.3,2328.1,10.55066904]
[1727974022426,0.8159,2329.3,2328.2,0.7789]
[1727974022427,4.29438,2328.7,2328.2,0.7789]
[1727974022625,8.58798,2328.9,2328.2,5.07394]
[1727974022837,4.29408,2328.8,2328.3,4.29488]
[1727974023065,4.29426,2328.7,2328.4,0.936882]
[1727974023454,4.29408,2328.8,2328.2,5.07405]
[1727974023765,4.29441,2328.7,2328.2,0.7789]
[1727974023941,3.0,2329.0,2328.2,0.7789]
[1727974024140,4.29525,2328.2,2327.9,0.8213]
[1727974024672,4.29463,2328.5,2327.9,0.8213]
[1727974024673,4.29464,2328.5,2327.9,0.8213]
[1727974024892,4.29436,2328.7,2327.9,0.8213]
[1727974025087,4.29399,2328.9,2328.3,5.11625]
[1727974025242,4.29417,2328.8,2328.4,0.58209318]
[1727974025793,4.29437,2328.7,2328.3,0.8213]
[1727974026080,4.29506,2328.3,2328.0,8.2889]
[1727974026292,4.29531,2328.2,2328.0,0.8289]
[1727974026492,4.29482,2328.4,2328.0,0.8289]
[1727974026669,3.0,2328.9,2328.0,0.8289]
[1727974026670,4.295,2328.3,2328.0,0.8289]
[1727974026980,8.5901,2328.3,2328.0,0.8289]
[1727974027188,4.29531,2328.2,2328.0,0.8289]
[1727974027346,0.7786,2328.7,2328.0,0.8289]
[1727974027347,4.29475,2328.5,2328.0,0.8289]
[1727974027680,5.231511,2328.5,2328.0,0.8289]
[1727974027883,4.2945,2328.6,2328.0,0.8289]
[1727974028096,4.2945,2328.6,2327.5,7.46]
[1727974028097,4.29421,2328.8,2328.3,0.7867]
[1727974028261,4.2935,2329.1,2328.3,0.7867]
[1727974028458,4.29455,2328.6,2328.3,1.294885]
[1727974028689,4.29455,2328.6,2328.3,0.7867]
[1727974028928,4.29398,2328.9,2328.3,5.08158]
[1727974029216,4.29396,2328.9,2328.3,5.08165]
[1727974029374,7.29362,2329.1,2328.4,0.93767]
[1727974029572,8.58725,2329.1,2328.4,4.29477]
[1727974029902,4.29362,2329.1,2328.5,4.29458]
[1727974030076,0.7897,2329.7,2328.5,5.1100543]
[1727974030277,4.29248,2329.7,2329.2,5.07179]
[1727974030506,4.29248,2329.7,2329.2,6.008309]
[1727974031101,0.44889565,2330.5,2329.4,5.1100543]
[1727974031412,4.29157,2330.2,2329.6,4.29247]
[1727974031575,4.29134,2330.3,2329.5,0.7785]
[1727974031782,4.29213,2329.9,2329.5,0.7785]
[1727974032033,0.8099,2330.6,2329.5,0.7785]
[1727974032034,4.29147,2330.2,2329.5,0.7785]
[1727974032358,8.58501,2329.7,2329.5,0.7785]
[1727974032612,8.06087,2330.1,2329.2,0.8201]
[1727974032817,4.29256,2329.7,2329.2,0.8201]
[1727974033117,4.29223,2329.8,2329.3,4.29306]
[1727974033277,4.29223,2329.8,2329.4,0.511316]
[1727974033475,7.29172,2330.1,2329.6,4.29252]
[1727974033677,0.429117,2330.3,2329.7,0.7571]
[1727974033911,4.29113,2330.4,2329.9,4.29194]
[1727974034072,4.29113,2330.4,2329.9,4.796844]
[1727974034852,4.29048,2330.8,2330.2,4.29139]
[1727974035035,4.29048,2330.8,2330.1,4.29159]
[1727974035177,4.29048,2330.8,2330.2,4.29147]
[1727974035521,4.29064,2330.7,2330.2,4.29147]
[1727974035720,4.29064,2330.7,2330.3,0.08581355]
[1727974036093,5.148529,2330.8,2330.3,0.08581355]
[1727974036392,9.439009,2330.8,2330.3,0.08581355]
[1727974036592,4.29066,2330.7,2330.3,0.08581355]
[1727974036792,4.29075,2330.6,2330.3,0.08581355]
[1727974037124,4.29075,2330.6,2330.1,4.29154]
[1727974037880,4.29094,2330.5,2330.1,0.9897874]
[1727974038388,4.29093,2330.5,2330.0,0.8095]
[1727974038619,4.29075,2330.6,2330.0,5.10133]
[1727974038823,4.29064,2330.7,2330.1,4.29165]
[1727974038983,4.29078,2330.6,2330.1,4.29165]
[1727974039182,4.29078,2330.6,2330.2,0.510115]
[1727974039417,4.29064,2330.7,2330.2,0.510115]
[1727974039780,8.58128,2330.7,2330.2,0.510115]
[1727974040644,8.58129,2330.7,2330.2,0.510115]
[1727974040843,4.29064,2330.7,2330.2,0.510115]
[1727974041058,4.29004,2331.0,2330.0,0.8095]
[1727974041059,4.29106,2330.5,2330.0,0.8095]
[1727974041271,4.29106,2330.5,2330.0,5.10131]
[1727974041488,4.29094,2330.5,2330.0,0.8095]
[1727974041815,4.29182,2330.1,2329.6,0.8275]
[1727974042002,4.29107,2330.5,2329.6,2.002776]
[1727974042003,4.29149,2330.2,2329.6,2.002776]
[1727974042152,4.29102,2330.5,2330.0,0.7585]
[1727974042350,4.29102,2330.5,2330.0,5.555333]
[1727974043221,4.29102,2330.5,2330.0,1.263543]
[1727974043341,4.2907,2330.7,2330.1,4.29165]
[1727974043545,4.29058,2330.7,2330.2,4.29141]
[1727974043754,7.29028,2330.9,2330.1,0.55]
[1727974043995,7.29028,2330.9,2330.5,0.7965]
[1727974044295,4.29074,2330.6,2330.5,0.7965]
[1727974044461,4.291,2330.5,2330.2,0.7965]
[1727974045193,4.29151,2330.2,2329.8,0.7965]
[1727974045402,4.29121,2330.4,2329.8,0.7965]
[1727974045550,4.29142,2330.3,2329.8,0.7965]
[1727974045887,4.29113,2330.4,2329.8,0.7965]
[1727974046114,4.2913,2330.3,2329.8,0.7965]
[1727974046286,4.2913,2330.3,2329.8,1.4229036]
[1727974046287,4.29155,2330.2,2329.8,1.4229036]
[1727974046453,4.2913,2330.3,2329.8,1.4229036]
[1727974046648,4.2913,2330.3,2329.8,5.7150236]
[1727974046862,4.29159,2330.2,2329.8,1.4229036]
[1727974047052,4.29159,2330.2,2329.8,0.7965]
[1727974047280,4.29178,2330.1,2329.8,0.7965]
[1727974047492,3.0,2330.4,2329.8,0.7965]
[1727974047671,4.29177,2330.1,2329.8,0.7965]
[1727974048060,4.29225,2329.8,2329.6,0.8119]
[1727974048792,4.29167,2330.1,2329.6,1.63909]
[1727974048968,4.29192,2330.0,2329.6,1.63909]
[1727974049391,4.29206,2329.9,2329.6,0.8119]
[1727974049802,8.58426,2329.9,2329.6,0.8119]
[1727974049955,4.29239,2329.7,2329.5,7.46]
[1727974050160,4.29239,2329.7,2329.4,0.8099]
[1727974050355,4.29285,2329.5,2329.1,0.8099]
[1727974050555,4.29259,2329.6,2329.1,6.359662]
[1727974050803,4.29231,2329.8,2329.1,2.066242]
[1727974051104,4.29231,2329.8,2329.3,4.29302]
[1727974051309,4.29231,2329.8,2329.1,2.066242]
[1727974051310,4.29285,2329.5,2329.1,2.066242]
[1727974051455,0.8064,2329.9,2329.1,2.066242]
[1727974051659,4.29252,2329.7,2329.2,5.2458942]
[1727974051869,0.8064,2329.9,2329.2,0.9526242]
[1727974051870,4.29284,2329.5,2329.2,0.9526242]
[1727974052089,4.29284,2329.5,2329.1,0.8099]
[1727974052799,4.29277,2329.5,2329.1,5.10339]
[1727974053006,4.29277,2329.5,2329.1,0.8099]
[1727974054106,4.29232,2329.8,2329.4,0.7537]
[1727974054469,4.29232,2329.8,2329.1,1.604749]
[1727974054470,4.29276,2329.5,2329.2,0.7537]
[1727974054660,8.07172,2330.2,2329.2,5.047]
[1727974054661,4.29252,2329.7,2329.2,5.047]
[1727974055010,4.29227,2329.8,2329.2,2.0044]
[1727974055219,0.7801,2330.2,2329.4,4.29292]
[1727974055364,4.29188,2330.0,2329.5,0.8002]
[1727974055558,4.29188,2330.0,2329.5,5.09284]
[1727974055864,4.29112,2330.4,2329.9,0.7669]
[1727974055865,4.2913,2330.3,2329.9,0.7669]
[1727974056058,0.8021,2330.5,2329.9,0.7669]
[1727974056059,4.291,2330.5,2329.9,0.7669]
[1727974056259,4.291,2330.5,2330.0,4.29174]
[1727974056483,4.29149,2330.2,2329.9,0.7669]
[1727974056902,4.29138,2330.3,2329.9,0.7669]
[1727974057060,4.29184,2330.0,2329.9,0.7669]
[1727974057255,8.58344,2330.1,2329.9,0.7669]
[1727974057677,4.2917,2330.1,2329.9,0.7669]
[1727974058281,4.29156,2330.2,2329.9,1.272829]
[1727974058799,8.58313,2330.2,2329.9,1.272829]
[1727974059689,4.29156,2330.2,2329.9,1.272829]
[1727974059863,4.29119,2330.4,2329.9,5.564729]
[1727974060061,3.0,2330.9,2330.0,0.5564729]
[1727974060062,4.29137,2330.3,2330.0,0.5564729]
[1727974060265,4.29137,2330.3,2329.9,0.7669]
[1727974060266,4.29149,2330.2,2329.9,0.7669]
[1727974060564,4.29166,2330.1,2329.9,0.7669]
[1727974060991,4.29167,2330.1,2329.6,0.8123]
[1727974061223,3.0,2330.3,2329.6,1.63953]
[1727974061375,4.29173,2330.1,2329.6,5.93198]
[1727974061705,4.29204,2329.9,2329.6,1.63953]
[1727974061866,8.5842,2329.9,2329.6,1.63953]
[1727974062205,4.29204,2329.9,2329.6,1.63953]
[1727974062521,7.29094,2330.5,2329.1,0.7937]
[1727974062522,0.7586,2330.1,2329.1,0.7937]
[1727974062813,4.29331,2329.2,2329.1,0.7937]
[1727974062960,4.29291,2329.5,2329.1,0.7937]
[1727974063157,17.66427089,2330.4,2329.2,4.29316]
[1727974063158,4.29257,2329.7,2329.2,4.29316]
[1727974063557,4.29268,2329.6,2329.1,0.7937]
[1727974063995,4.29241,2329.7,2329.2,4.29331]
[1727974064202,4.29198,2330.0,2329.4,0.7673]
[1727974064416,4.29169,2330.1,2329.6,4.29247]
[1727974064564,4.29186,2330.0,2329.5,4.79868]
[1727974064936,4.29189,2330.0,2329.7,0.7673]
[1727974065090,3.8026,2330.4,2329.7,0.7673]
[1727974065264,4.29155,2330.2,2329.7,5.05959]
[1727974065462,4.29132,2330.3,2329.8,4.798039]
[1727974065699,8.5827,2330.3,2329.8,4.798039]
[1727974066009,4.291,2330.5,2330.0,0.7995]
[1727974066247,4.29156,2330.2,2330.0,0.7995]
[1727974066366,4.29187,2330.0,2329.7,0.7822]
[1727974066562,4.29258,2329.6,2329.5,0.50603]
[1727974066783,4.29276,2329.5,2329.4,0.7937]
[1727974067024,4.29235,2329.8,2329.4,0.7937]
[1727974067212,4.29137,2330.3,2329.4,5.08662]
[1727974067361,4.2921,2329.9,2329.4,5.08662]
[1727974067564,4.2916,2330.2,2329.5,4.801362]
[1727974067764,4.29119,2330.4,2329.9,4.2919]
[1727974068004,4.29081,2330.6,2330.1,4.29155]
[1727974068160,4.29105,2330.5,2330.0,0.7997]
[1727974068366,4.29103,2330.5,2330.0,0.7997]
[1727974068599,4.29119,2330.4,2330.1,0.509172]
[1727974068902,5.05836,2331.1,2330.0,0.7997]
[1727974068903,4.29099,2330.5,2330.0,0.7997]
[1727974069206,4.29099,2330.5,2330.1,4.29161]
[1727974069378,4.29099,2330.5,2330.0,5.09152]
[1727974069717,4.29068,2330.7,2330.3,0.7657]
[1727974069868,4.29042,2330.8,2330.4,4.29107]
[1727974070213,4.2897,2331.2,2330.4,0.0638169]
[1727974070498,4.29092,2330.5,2330.3,0.7657]
[1727974070717,4.2911,2330.4,2330.3,0.7657]
[1727974071014,4.28994,2331.1,2330.3,0.7657]
[1727974071180,8.58138,2330.7,2330.3,0.7657]
[1727974071391,8.58138,2330.7,2330.4,0.505716]
[1727974071392,4.29069,2330.7,2330.4,0.505716]
[1727974071701,4.29093,2330.5,2330.3,0.7657]
[1727974071906,4.2911,2330.4,2330.3,0.7657]
[1727974072114,4.29089,2330.6,2330.3,0.7657]
[1727974072265,4.29057,2330.7,2330.3,0.7657]
[1727974072462,8.58123,2330.7,2330.4,0.505714]
[1727974072901,8.58123,2330.7,2330.0,0.754]
[1727974072902,4.29101,2330.5,2330.0,0.754]
[1727974073089,4.29112,2330.4,2330.0,5.04581]
[1727974073421,4.29103,2330.5,2330.1,4.29158]
[1727974074518,4.29067,2330.7,2330.3,0.8065]
[1727974074724,4.29033,2330.9,2330.4,0.938936]
[1727974074904,4.29033,2330.9,2330.3,0.8065]
[1727974074905,4.2911,2330.4,2330.3,0.8065]
[1727974075111,4.29102,2330.5,2330.3,0.8065]
[1727974075485,8.58206,2330.5,2330.3,0.8065]
[1727974076025,4.29102,2330.5,2330.3,0.8065]
[1727974076226,4.29077,2330.6,2330.3,1.316312]
[1727974076380,8.58137,2330.7,2330.3,1.316312]
[1727974076735,4.29076,2330.6,2330.3,1.316312]
[1727974077226,7.29003,2331.0,2330.3,0.8065]
[1727974077227,4.29092,2330.5,2330.3,0.8065]
[1727974077585,4.2911,2330.4,2330.3,0.8065]
[1727974077810,4.29095,2330.5,2330.3,0.8065]
[1727974078009,7.29013,2331.0,2330.3,0.8065]
[1727974078010,4.29077,2330.6,2330.3,0.8065]
[1727974078211,4.29077,2330.6,2330.3,1.316304]
[1727974078487,4.29051,2330.8,2330.3,1.316304]
[1727974078722,4.29058,2330.7,2330.3,5.607474]
[1727974079023,4.29058,2330.7,2330.4,0.9898934]
[1727974079881,8.58025,2331.0,2330.5,4.29085]
[1727974080135,4.29012,2331.0,2330.6,4.29066]
[1727974080334,0.7739,2331.2,2330.4,0.9898934]
[1727974080642,4.29047,2330.8,2330.3,1.316304]
[1727974080784,4.29058,2330.7,2330.3,5.607584]
[1727974080983,4.29027,2330.9,2330.5,4.29083]
[1727974081185,4.29055,2330.7,2330.6,0.429083]
[1727974081397,4.29011,2331.0,2330.5,4.29084]
[1727974081699,4.29029,2330.9,2330.3,1.266304]
[1727974081930,5.06356,2331.2,2330.4,0.5557674]
[1727974081931,4.28979,2331.2,2330.4,0.5557674]
[1727974082232,4.28969,2331.2,2330.7,4.29046]
[1727974082415,0.7602,2331.5,2330.8,0.429046]
[1727974082615,4.28974,2331.2,2330.8,4.719406]
[1727974083238,4.28997,2331.1,2330.8,0.429046]
[1727974083532,0.7602,2331.5,2330.8,4.29027]
[1727974083533,4.2896,2331.3,2330.8,4.29027]
[1727974083748,4.28959,2331.3,2330.9,4.29016]
[1727974084194,4.28963,2331.2,2330.8,4.29027]
[1727974084394,4.28965,2331.2,2331.0,0.7894]
[1727974084801,4.29002,2331.0,2330.7,0.7894]
[1727974085155,7.28889,2331.7,2330.4,0.7894]
[1727974085156,4.29063,2330.7,2330.4,0.7894]
[1727974085442,7.28931,2331.4,2329.9,0.7894]
[1727974085443,4.29129,2330.3,2329.9,0.7894]
[1727974085594,4.29181,2330.1,2329.9,0.7894]
[1727974085941,4.29111,2330.4,2330.0,4.29183]
[1727974086533,0.7945,2330.7,2329.6,0.8228]
[1727974086738,4.29203,2329.9,2329.6,0.8228]
[1727974087037,4.29258,2329.6,2329.3,0.8228]
[1727974087563,4.29242,2329.7,2329.3,0.8228]
[1727974087724,4.29223,2329.8,2329.3,0.8228]
[1727974087931,5.0511,2330.2,2329.3,5.11592]
[1727974088133,4.29224,2329.8,2329.4,4.29289]
[1727974088422,0.7596,2330.2,2329.4,4.29289]
[1727974088423,4.29179,2330.1,2329.5,4.29266]
[1727974088628,4.29241,2329.7,2329.4,0.940881]
[1727974089144,4.29236,2329.8,2329.4,0.940881]
[1727974089437,4.29236,2329.8,2329.3,5.11591]
[1727974089438,4.29259,2329.6,2329.3,0.8228]
[1727974089649,5.0511,2330.2,2329.3,0.8228]
[1727974089650,4.29284,2329.5,2329.3,0.8228]
[1727974089944,4.29284,2329.5,2329.0,0.82]
[1727974089945,4.29314,2329.3,2329.0,0.82]
[1727974090233,4.29297,2329.4,2329.0,0.82]
[1727974090453,4.29297,2329.4,2329.0,5.11368]
[1727974090799,0.8112,2329.6,2329.0,5.11368]
[1727974090999,1.750798,2329.6,2329.0,0.82]
[1727974091241,4.29274,2329.6,2329.0,5.11367]
[1727974091444,4.29267,2329.6,2329.1,4.29335]
[1727974091758,4.29267,2329.6,2329.0,5.11366]
[1727974091940,5.10673,2329.9,2329.0,0.82]
[1727974091941,4.29324,2329.3,2329.0,0.82]
[1727974092143,4.29318,2329.3,2328.9,4.29382]
[1727974092302,4.29296,2329.4,2329.0,4.29367]
[1727974092504,4.29277,2329.5,2329.1,5.12253]
[1727974093049,4.29275,2329.6,2329.1,5.12253]
[1727974093050,4.29275,2329.6,2329.2,4.29323]
[1727974093349,4.2924,2329.7,2329.2,4.29323]
[1727974093700,4.29262,2329.6,2329.1,9.41593]
[1727974093944,4.29262,2329.6,2329.1,10.5262916]
[1727974094111,4.29262,2329.6,2329.2,4.29324]
[1727974095169,4.29239,2329.8,2329.3,4.29311]
[1727974095349,4.29242,2329.7,2329.3,4.29311]
[1727974095649,4.29242,2329.7,2329.2,4.29316]
[1727974095847,4.29212,2329.9,2329.3,1.05260916]
[1727974096024,4.29212,2329.9,2329.5,8.58535]
[1727974096214,4.29217,2329.9,2329.4,5.08592]
[1727974096411,8.58434,2329.9,2329.5,4.29274]
[1727974096617,4.29229,2329.8,2329.4,5.08592]
[1727974097054,4.29217,2329.9,2329.4,9.37874]
[1727974097345,4.29217,2329.9,2329.5,0.937874]
[1727974097346,4.29212,2329.9,2329.5,0.937874]
[1727974097553,4.29185,2330.0,2329.5,5.230604]
[1727974097847,4.29185,2330.0,2329.5,5.230544]
[1727974098146,4.29185,2330.0,2329.4,0.793]
[1727974098147,0.8085,2330.3,2329.4,0.793]
[1727974098352,4.29179,2330.1,2329.4,0.793]
[1727974098520,4.29193,2330.0,2329.4,5.08585]
[1727974098737,4.2924,2329.7,2329.4,0.793]
[1727974098907,4.29276,2329.5,2329.4,0.793]
[1727974099110,4.29276,2329.5,2329.1,0.8227]
[1727974099329,5.05886,2329.7,2329.1,7.103208]
[1727974099534,4.29258,2329.6,2329.1,2.809708]
[1727974099747,4.29256,2329.7,2329.2,4.29316]
[1727974099914,4.29256,2329.7,2329.3,4.29309]
[1727974100164,4.29256,2329.7,2329.2,4.29316]
[1727974100474,4.29266,2329.6,2329.2,8.58638]
[1727974100661,0.7602,2330.0,2329.4,4.29287]
[1727974100867,4.29151,2330.2,2329.7,4.29223]
[1727974101066,10.31,2330.5,2329.7,4.804153]
[1727974101067,5.06316,2330.5,2329.7,4.804153]
[1727974101275,4.29003,2331.0,2330.5,4.29078]
[1727974101562,4.29003,2331.0,2330.5,5.06508]
[1727974101799,1.1777689,2331.3,2330.7,4.29044]
[1727974101800,4.28972,2331.2,2330.7,4.29044]
[1727974101955,4.28956,2331.3,2330.7,4.29044]
[1727974101956,4.28947,2331.3,2330.7,4.29044]
[1727974102133,4.28973,2331.2,2330.6,4.29056]
[1727974102361,4.28973,2331.2,2330.5,5.571588]